[Event "Titled Tuesday Blitz September 21 2021"]
[White "Mortazavi, Ali"]
[Black "Xiong, Jeffery"]
[WhiteFideId "401323"]
[BlackFideId "2047640"]
[WhiteElo "2339"]
[BlackElo "2699"]
[Result "0-1"]
[Round "02"]
[TimeControl "180+1"]
[Date "2021.09.21"]
[WhiteClock "0:00:04"]
[BlackClock "0:00:21"]

1. e4 {[%clk 0:03:00]}  c6 {[%clk 0:02:16]} 2. d4 {[%clk 0:02:56]}  d5 {[%clk 0:02:15]} 3. Nc3 {[%clk 0:02:55]}  dxe4 {[%clk 0:02:16]} 4. f3 {[%clk 0:02:56]}  e5 {[%clk 0:02:14]} 5. Be3 {[%clk 0:02:30]}  Nh6 {[%clk 0:01:55]} 6. dxe5 {[%clk 0:02:06]}  Qxd1+ {[%clk 0:01:56]} 7. Rxd1 {[%clk 0:02:06]}  exf3 {[%clk 0:01:48]} 8. Nxf3 {[%clk 0:01:57]}  Be6 {[%clk 0:01:48]} 9. Ne4 {[%clk 0:01:47]}  Nd7 {[%clk 0:01:44]} 10. Bxh6 {[%clk 0:01:38]}  gxh6 {[%clk 0:01:45]} 11. Nd6+ {[%clk 0:01:33]}  Bxd6 {[%clk 0:01:45]} 12. exd6 {[%clk 0:01:30]}  O-O-O {[%clk 0:01:45]} 13. Be2 {[%clk 0:00:48]}  Rhe8 {[%clk 0:01:44]} 14. O-O {[%clk 0:00:47]}  Bxa2 {[%clk 0:01:44]} 15. Bd3 {[%clk 0:00:46]}  Bd5 {[%clk 0:01:42]} 16. Bxh7 {[%clk 0:00:43]}  Nc5 {[%clk 0:01:26]} 17. Bf5+ {[%clk 0:00:34]}  Kb8 {[%clk 0:01:26]} 18. Rfe1 {[%clk 0:00:28]}  Rxe1+ {[%clk 0:01:24]} 19. Nxe1 {[%clk 0:00:25]}  b5 {[%clk 0:01:24]} 20. b3 {[%clk 0:00:21]}  b4 {[%clk 0:01:05]} 21. Rd4 {[%clk 0:00:19]}  a5 {[%clk 0:01:05]} 22. d7 {[%clk 0:00:19]}  Nxd7 {[%clk 0:01:05]} 23. Rh4 {[%clk 0:00:19]}  Nc5 {[%clk 0:00:39]} 24. Rxh6 {[%clk 0:00:19]}  Kc7 {[%clk 0:00:40]} 25. Kf2 {[%clk 0:00:18]}  Be4 {[%clk 0:00:31]} 26. Bg4 {[%clk 0:00:14]}  Bxc2 {[%clk 0:00:29]} 27. Bf3 {[%clk 0:00:12]}  Be4 {[%clk 0:00:27]} 28. h4 {[%clk 0:00:11]}  Bxf3 {[%clk 0:00:25]} 29. Nxf3 {[%clk 0:00:10]}  Nxb3 {[%clk 0:00:26]} 30. Rh7 {[%clk 0:00:10]}  a4 {[%clk 0:00:25]} 31. Rxf7+ {[%clk 0:00:09]}  Kb6 {[%clk 0:00:26]} 32. Ne5 {[%clk 0:00:09]}  a3 {[%clk 0:00:26]} 33. Rf4 {[%clk 0:00:05]}  Kb5 {[%clk 0:00:22]} 34. Rf5 {[%clk 0:00:05]}  c5 {[%clk 0:00:22]} 35. Rf7 {[%clk 0:00:04]}  Na5 {[%clk 0:00:21]} 0-1


[Site "https://www.chess.com"]

[Event "Titled Tuesday Blitz September 21 2021"]
[White "Nakamura, Hikaru"]
[Black "Materia, Marco"]
[WhiteFideId "2016192"]
[BlackFideId "45150451"]
[WhiteElo "2884"]
[BlackElo "2613"]
[Result "1-0"]
[Round "02"]
[TimeControl "180+1"]
[Date "2021.09.21"]
[WhiteClock "0:01:15"]
[BlackClock "0:00:46"]

1. Nf3 {[%clk 0:03:00]}  d5 {[%clk 0:02:59]} 2. d4 {[%clk 0:02:58]}  Nf6 {[%clk 0:02:59]} 3. c4 {[%clk 0:02:59]}  e6 {[%clk 0:02:58]} 4. Nc3 {[%clk 0:02:58]}  dxc4 {[%clk 0:02:58]} 5. e3 {[%clk 0:02:57]}  a6 {[%clk 0:02:56]} 6. Bxc4 {[%clk 0:02:58]}  b5 {[%clk 0:02:56]} 7. Bb3 {[%clk 0:02:58]}  Bb7 {[%clk 0:02:55]} 8. O-O {[%clk 0:02:58]}  Nbd7 {[%clk 0:02:54]} 9. Qe2 {[%clk 0:02:58]}  c5 {[%clk 0:02:53]} 10. Rd1 {[%clk 0:02:58]}  Be7 {[%clk 0:02:43]} 11. d5 {[%clk 0:02:49]}  exd5 {[%clk 0:02:43]} 12. Nxd5 {[%clk 0:02:49]}  Nxd5 {[%clk 0:02:42]} 13. Bxd5 {[%clk 0:02:49]}  Bxd5 {[%clk 0:02:42]} 14. Rxd5 {[%clk 0:02:50]}  Qc7 {[%clk 0:02:42]} 15. e4 {[%clk 0:02:50]}  O-O {[%clk 0:02:37]} 16. Bg5 {[%clk 0:02:35]}  Nb6 {[%clk 0:02:27]} 17. Rd3 {[%clk 0:02:30]}  Rad8 {[%clk 0:02:24]} 18. Rc3 {[%clk 0:02:18]}  c4 {[%clk 0:02:17]} 19. Be3 {[%clk 0:02:17]}  Bc5 {[%clk 0:02:12]} 20. Nh4 {[%clk 0:02:17]}  Bxe3 {[%clk 0:02:10]} 21. Rxe3 {[%clk 0:02:17]}  Nd7 {[%clk 0:02:01]} 22. e5 {[%clk 0:02:14]}  Rfe8 {[%clk 0:01:58]} 23. f4 {[%clk 0:02:14]}  Nc5 {[%clk 0:01:54]} 24. Nf5 {[%clk 0:02:14]}  Nd3 {[%clk 0:01:52]} 25. Qg4 {[%clk 0:01:52]}  g6 {[%clk 0:01:51]} 26. Nh6+ {[%clk 0:01:52]}  Kg7 {[%clk 0:01:47]} 27. Qg5 {[%clk 0:01:45]}  Qb6 {[%clk 0:01:41]} 28. Ng4 {[%clk 0:01:42]}  Re6 {[%clk 0:01:15]} 29. f5 {[%clk 0:01:29]}  Rc6 {[%clk 0:01:13]} 30. Qh6+ {[%clk 0:01:16]}  Kh8 {[%clk 0:01:12]} 31. f6 {[%clk 0:01:15]}  Rg8 {[%clk 0:01:11]} 32. Kh1 {[%clk 0:01:14]}  Qd4 {[%clk 0:00:45]} 33. Qxh7+ {[%clk 0:01:14]}  Kxh7 {[%clk 0:00:46]} 34. Rh3# {[%clk 0:01:15]} 1-0


[Site "https://www.chess.com"]

[Event "Titled Tuesday Blitz September 21 2021"]
[White "P., Komal Kishore"]
[Black "Assaubayeva, Bibisara"]
[WhiteFideId "5016703"]
[BlackFideId "13708694"]
[WhiteElo "2156"]
[BlackElo "2232"]
[Result "0-1"]
[Round "02"]
[TimeControl "180+1"]
[Date "2021.09.21"]
[WhiteClock "0:00:46"]
[BlackClock "0:01:36"]

1. e4 {[%clk 0:02:58]}  c5 {[%clk 0:02:59]} 2. f4 {[%clk 0:02:57]}  d6 {[%clk 0:02:59]} 3. Nf3 {[%clk 0:02:56]}  g6 {[%clk 0:02:59]} 4. Bc4 {[%clk 0:02:53]}  Bg7 {[%clk 0:02:58]} 5. Nc3 {[%clk 0:02:53]}  Nc6 {[%clk 0:02:57]} 6. d3 {[%clk 0:02:51]}  Nf6 {[%clk 0:02:46]} 7. O-O {[%clk 0:02:49]}  O-O {[%clk 0:02:45]} 8. Qe1 {[%clk 0:02:47]}  Bg4 {[%clk 0:02:41]} 9. Qh4 {[%clk 0:02:45]}  Bxf3 {[%clk 0:02:35]} 10. Rxf3 {[%clk 0:02:41]}  Nd4 {[%clk 0:02:35]} 11. Rf2 {[%clk 0:02:40]}  a6 {[%clk 0:02:19]} 12. a4 {[%clk 0:02:36]}  b5 {[%clk 0:02:18]} 13. Bd5 {[%clk 0:02:24]}  Nxd5 {[%clk 0:02:17]} 14. Nxd5 {[%clk 0:02:23]}  e6 {[%clk 0:02:12]} 15. Qxd8 {[%clk 0:02:22]}  Rfxd8 {[%clk 0:02:10]} 16. Nc3 {[%clk 0:02:10]}  b4 {[%clk 0:02:06]} 17. Nd1 {[%clk 0:02:08]}  f5 {[%clk 0:02:00]} 18. c3 {[%clk 0:02:02]}  Nb3 {[%clk 0:01:57]} 19. Rb1 {[%clk 0:01:59]}  fxe4 {[%clk 0:01:56]} 20. dxe4 {[%clk 0:01:57]}  c4 {[%clk 0:01:52]} 21. cxb4 {[%clk 0:01:53]}  Nxc1 {[%clk 0:01:47]} 22. Rxc1 {[%clk 0:01:50]}  Bd4 {[%clk 0:01:46]} 23. Rxc4 {[%clk 0:01:48]}  Bxf2+ {[%clk 0:01:46]} 24. Kxf2 {[%clk 0:01:47]}  Rac8 {[%clk 0:01:45]} 25. Ne3 {[%clk 0:01:45]}  Rxc4 {[%clk 0:01:43]} 26. Nxc4 {[%clk 0:01:44]}  d5 {[%clk 0:01:42]} 27. exd5 {[%clk 0:01:39]}  exd5 {[%clk 0:01:42]} 28. Na3 {[%clk 0:01:32]}  Re8 {[%clk 0:01:40]} 29. g3 {[%clk 0:01:28]}  d4 {[%clk 0:01:39]} 30. b5 {[%clk 0:01:26]}  axb5 {[%clk 0:01:37]} 31. Nxb5 {[%clk 0:01:26]}  d3 {[%clk 0:01:37]} 32. Nc3 {[%clk 0:01:22]}  d2 {[%clk 0:01:36]} 33. b4 {[%clk 0:01:17]}  Re1 {[%clk 0:01:35]} 34. a5 {[%clk 0:01:11]}  d1=Q {[%clk 0:01:35]} 35. Nxd1 {[%clk 0:01:09]}  Rxd1 {[%clk 0:01:36]} 36. a6 {[%clk 0:01:02]}  Ra1 {[%clk 0:01:36]} 37. b5 {[%clk 0:01:00]}  Ra5 {[%clk 0:01:36]} 38. g4 {[%clk 0:00:54]}  Rxb5 {[%clk 0:01:36]} 39. h4 {[%clk 0:00:49]}  Ra5 {[%clk 0:01:36]} 40. h5 {[%clk 0:00:49]}  gxh5 {[%clk 0:01:35]} 41. gxh5 {[%clk 0:00:49]}  Rxa6 {[%clk 0:01:35]} 42. Kg3 {[%clk 0:00:46]}  Kf7 {[%clk 0:01:36]} 0-1


[Site "https://www.chess.com"]

[Event "Titled Tuesday Blitz September 21 2021"]
[White "Peralta, Eduardo"]
[Black "Kubicka, Anna"]
[WhiteFideId "3700062"]
[BlackFideId "1152254"]
[WhiteElo "2159"]
[BlackElo "1986"]
[Result "1-0"]
[Round "02"]
[TimeControl "180+1"]
[Date "2021.09.21"]
[WhiteClock "0:00:45"]
[BlackClock "0:00:44"]

1. Nf3 {[%clk 0:02:32]}  d5 {[%clk 0:02:54]} 2. g3 {[%clk 0:02:32]}  g6 {[%clk 0:02:53]} 3. Bg2 {[%clk 0:02:30]}  Bg7 {[%clk 0:02:54]} 4. O-O {[%clk 0:02:30]}  e5 {[%clk 0:02:54]} 5. d3 {[%clk 0:02:28]}  Nc6 {[%clk 0:02:53]} 6. Nbd2 {[%clk 0:02:23]}  Nge7 {[%clk 0:02:53]} 7. e4 {[%clk 0:02:23]}  O-O {[%clk 0:02:52]} 8. c3 {[%clk 0:02:18]}  h6 {[%clk 0:02:51]} 9. Re1 {[%clk 0:02:16]}  Be6 {[%clk 0:02:50]} 10. Qc2 {[%clk 0:02:16]}  Qd7 {[%clk 0:02:47]} 11. b4 {[%clk 0:02:10]}  a6 {[%clk 0:02:45]} 12. a4 {[%clk 0:01:32]}  b5 {[%clk 0:02:35]} 13. Nb3 {[%clk 0:01:29]}  d4 {[%clk 0:02:28]} 14. Nc5 {[%clk 0:01:25]}  Qc8 {[%clk 0:02:24]} 15. Nxe6 {[%clk 0:01:23]}  Qxe6 {[%clk 0:02:23]} 16. cxd4 {[%clk 0:01:23]}  exd4 {[%clk 0:02:15]} 17. Bd2 {[%clk 0:01:22]}  Qd7 {[%clk 0:01:58]} 18. Rec1 {[%clk 0:01:18]}  Rab8 {[%clk 0:01:51]} 19. axb5 {[%clk 0:01:17]}  axb5 {[%clk 0:01:47]} 20. Qb3 {[%clk 0:01:15]}  Ne5 {[%clk 0:01:43]} 21. Nxe5 {[%clk 0:01:13]}  Bxe5 {[%clk 0:01:44]} 22. Bxh6 {[%clk 0:01:11]}  Bg7 {[%clk 0:01:43]} 23. Bf4 {[%clk 0:01:08]}  Nc6 {[%clk 0:01:33]} 24. Rc5 {[%clk 0:01:02]}  Rfe8 {[%clk 0:01:24]} 25. Rac1 {[%clk 0:01:01]}  Ne5 {[%clk 0:01:22]} 26. Rxc7 {[%clk 0:01:00]}  Qe6 {[%clk 0:01:16]} 27. Qc2 {[%clk 0:00:58]}  Qg4 {[%clk 0:01:09]} 28. Bxe5 {[%clk 0:00:56]}  Bxe5 {[%clk 0:01:09]} 29. h3 {[%clk 0:00:55]}  Qe6 {[%clk 0:01:05]} 30. Rc6 {[%clk 0:00:55]}  Qe7 {[%clk 0:01:05]} 31. f4 {[%clk 0:00:54]}  Bd6 {[%clk 0:01:02]} 32. e5 {[%clk 0:00:54]}  Bxb4 {[%clk 0:01:02]} 33. Bd5 {[%clk 0:00:52]}  Bc3 {[%clk 0:01:00]} 34. Rxg6+ {[%clk 0:00:49]}  Kh7 {[%clk 0:00:59]} 35. Rf6 {[%clk 0:00:45]}  Rf8 {[%clk 0:00:58]} 36. Qe2 {[%clk 0:00:45]}  Kg7 {[%clk 0:00:47]} 37. Qg4+ {[%clk 0:00:45]}  Kh7 {[%clk 0:00:44]} 38. Qh5+ {[%clk 0:00:44]}  Kg7 {[%clk 0:00:45]} 39. Qg5+ {[%clk 0:00:44]}  Kh7 {[%clk 0:00:44]} 40. Rh6# {[%clk 0:00:45]} 1-0


[Site "https://www.chess.com"]

[Event "Titled Tuesday Blitz September 21 2021"]
[White "Perez Gormaz, Matias"]
[Black "Johnson, Joel"]
[WhiteFideId "3406342"]
[BlackFideId "2003821"]
[WhiteElo "2352"]
[BlackElo "2217"]
[Result "1-0"]
[Round "02"]
[TimeControl "180+1"]
[Date "2021.09.21"]
[WhiteClock "0:01:19"]
[BlackClock "0:02:20"]

1. e4 {[%clk 0:03:00]}  a6 {[%clk 0:02:58]} 2. d4 {[%clk 0:02:52]}  b5 {[%clk 0:02:58]} 3. Nf3 {[%clk 0:02:49]}  Bb7 {[%clk 0:02:59]} 4. Bd3 {[%clk 0:02:50]}  e6 {[%clk 0:02:59]} 5. O-O {[%clk 0:02:47]}  Nf6 {[%clk 0:02:59]} 6. Qe2 {[%clk 0:02:46]}  d6 {[%clk 0:02:59]} 7. a4 {[%clk 0:02:46]}  b4 {[%clk 0:02:57]} 8. Nbd2 {[%clk 0:02:41]}  Nbd7 {[%clk 0:02:58]} 9. a5 {[%clk 0:02:39]}  Rg8 {[%clk 0:02:55]} 10. c3 {[%clk 0:02:16]}  bxc3 {[%clk 0:02:52]} 11. bxc3 {[%clk 0:02:17]}  g5 {[%clk 0:02:53]} 12. Rb1 {[%clk 0:02:16]}  Rb8 {[%clk 0:02:52]} 13. Bxa6 {[%clk 0:01:33]}  Bxa6 {[%clk 0:02:50]} 14. Qxa6 {[%clk 0:01:34]}  Ra8 {[%clk 0:02:44]} 15. Qb5 {[%clk 0:01:29]}  g4 {[%clk 0:02:43]} 16. Ne1 {[%clk 0:01:28]}  Rb8 {[%clk 0:02:40]} 17. Qc6 {[%clk 0:01:27]}  Rxb1 {[%clk 0:02:26]} 18. Nxb1 {[%clk 0:01:25]}  h5 {[%clk 0:02:25]} 19. a6 {[%clk 0:01:20]}  h4 {[%clk 0:02:20]} 20. a7 {[%clk 0:01:19]} 1-0


[Site "https://www.chess.com"]

[Event "Titled Tuesday Blitz September 21 2021"]
[White "Petrovskyi, Vadym"]
[Black "Gershon, Alik"]
[WhiteFideId "14165210"]
[BlackFideId "2802430"]
[WhiteElo "2334"]
[BlackElo "2314"]
[Result "1-0"]
[Round "02"]
[TimeControl "180+1"]
[Date "2021.09.21"]
[WhiteClock "0:01:35"]
[BlackClock "0:00:19"]

1. e4 {[%clk 0:03:00]}  c6 {[%clk 0:02:17]} 2. d4 {[%clk 0:02:59]}  d5 {[%clk 0:01:56]} 3. Nc3 {[%clk 0:02:58]}  dxe4 {[%clk 0:01:56]} 4. Nxe4 {[%clk 0:02:59]}  Nf6 {[%clk 0:01:56]} 5. Nxf6+ {[%clk 0:02:59]}  gxf6 {[%clk 0:01:56]} 6. c3 {[%clk 0:02:59]}  Bf5 {[%clk 0:01:55]} 7. Nf3 {[%clk 0:02:59]}  e6 {[%clk 0:01:55]} 8. Be2 {[%clk 0:02:52]}  Rg8 {[%clk 0:01:55]} 9. g3 {[%clk 0:02:43]}  Qd5 {[%clk 0:01:53]} 10. O-O {[%clk 0:02:41]}  Nd7 {[%clk 0:01:53]} 11. c4 {[%clk 0:02:41]}  Qa5 {[%clk 0:01:52]} 12. a3 {[%clk 0:02:40]}  Bg4 {[%clk 0:01:48]} 13. d5 {[%clk 0:02:25]}  cxd5 {[%clk 0:01:42]} 14. b4 {[%clk 0:02:25]}  Qb6 {[%clk 0:01:30]} 15. cxd5 {[%clk 0:02:18]}  e5 {[%clk 0:01:23]} 16. Be3 {[%clk 0:02:13]}  Qd6 {[%clk 0:01:21]} 17. Rc1 {[%clk 0:02:12]}  h5 {[%clk 0:01:16]} 18. Nh4 {[%clk 0:02:06]}  Bxe2 {[%clk 0:01:08]} 19. Qxe2 {[%clk 0:02:07]}  Qxd5 {[%clk 0:01:08]} 20. Rfd1 {[%clk 0:02:06]}  Qe6 {[%clk 0:01:07]} 21. Qb5 {[%clk 0:02:05]}  Bd6 {[%clk 0:00:37]} 22. Nf5 {[%clk 0:02:03]}  Qxf5 {[%clk 0:00:34]} 23. Rxd6 {[%clk 0:02:02]}  Ke7 {[%clk 0:00:31]} 24. Rcd1 {[%clk 0:01:41]}  Rgd8 {[%clk 0:00:24]} 25. Qxb7 {[%clk 0:01:37]}  Ke8 {[%clk 0:00:19]} 26. Rxd7 {[%clk 0:01:35]}  Rxd7 {[%clk 0:00:18]} 27. Qxa8+ {[%clk 0:01:35]}  Ke7 {[%clk 0:00:19]} 28. Bc5+ {[%clk 0:01:35]} 1-0


[Site "https://www.chess.com"]

[Event "Titled Tuesday Blitz September 21 2021"]
[White "Pinheiro, Iung Alicio de O."]
[Black "Martinez Alcantara, Jose Eduardo"]
[WhiteFideId "2104350"]
[BlackFideId "3805662"]
[WhiteElo "2611"]
[BlackElo "2690"]
[Result "0-1"]
[Round "02"]
[TimeControl "180+1"]
[Date "2021.09.21"]
[WhiteClock "0:00:01"]
[BlackClock "0:00:06"]

1. e4 {[%clk 0:02:59]}  c5 {[%clk 0:03:00]} 2. Nc3 {[%clk 0:02:59]}  d6 {[%clk 0:03:00]} 3. d4 {[%clk 0:02:56]}  cxd4 {[%clk 0:03:01]} 4. Qxd4 {[%clk 0:02:56]}  Nc6 {[%clk 0:03:01]} 5. Qd2 {[%clk 0:02:56]}  g6 {[%clk 0:03:02]} 6. b3 {[%clk 0:02:56]}  Bh6 {[%clk 0:03:03]} 7. f4 {[%clk 0:02:56]}  Nf6 {[%clk 0:03:03]} 8. Bb2 {[%clk 0:02:48]}  O-O {[%clk 0:03:01]} 9. Bd3 {[%clk 0:02:48]}  e5 {[%clk 0:03:00]} 10. Nge2 {[%clk 0:02:46]}  Bg4 {[%clk 0:02:49]} 11. g3 {[%clk 0:02:19]}  d5 {[%clk 0:02:15]} 12. Nxd5 {[%clk 0:02:01]}  Nxd5 {[%clk 0:02:13]} 13. exd5 {[%clk 0:02:01]}  Qxd5 {[%clk 0:02:06]} 14. O-O-O {[%clk 0:02:00]}  Rad8 {[%clk 0:01:56]} 15. Nc3 {[%clk 0:01:30]}  Qe6 {[%clk 0:01:45]} 16. Rde1 {[%clk 0:01:23]}  Rd4 {[%clk 0:01:10]} 17. Kb1 {[%clk 0:01:12]}  Rfd8 {[%clk 0:01:10]} 18. Qf2 {[%clk 0:01:08]}  Rxd3 {[%clk 0:01:06]} 19. cxd3 {[%clk 0:01:07]}  Bf5 {[%clk 0:01:04]} 20. Ne4 {[%clk 0:00:59]}  Nb4 {[%clk 0:00:54]} 21. Nc5 {[%clk 0:00:22]}  Qc6 {[%clk 0:00:34]} 22. a3 {[%clk 0:00:16]}  Bxd3+ {[%clk 0:00:18]} 23. Ka1 {[%clk 0:00:16]}  Nc2+ {[%clk 0:00:17]} 24. Ka2 {[%clk 0:00:16]}  Nxe1 {[%clk 0:00:16]} 25. Rxe1 {[%clk 0:00:17]}  e4 {[%clk 0:00:13]} 26. Rc1 {[%clk 0:00:12]}  Qd5 {[%clk 0:00:13]} 27. Qd2 {[%clk 0:00:12]}  Bg7 {[%clk 0:00:11]} 28. Bxg7 {[%clk 0:00:11]}  Kxg7 {[%clk 0:00:12]} 29. Qc3+ {[%clk 0:00:11]}  Kg8 {[%clk 0:00:12]} 30. Kb2 {[%clk 0:00:10]}  b6 {[%clk 0:00:12]} 31. Nxd3 {[%clk 0:00:09]}  exd3 {[%clk 0:00:13]} 32. Rd1 {[%clk 0:00:10]}  Qe4 {[%clk 0:00:12]} 33. Rd2 {[%clk 0:00:10]}  h5 {[%clk 0:00:11]} 34. a4 {[%clk 0:00:08]}  a5 {[%clk 0:00:11]} 35. Qc4 {[%clk 0:00:08]}  Qe3 {[%clk 0:00:08]} 36. Qc3 {[%clk 0:00:07]}  h4 {[%clk 0:00:06]} 37. gxh4 {[%clk 0:00:05]}  Qxf4 {[%clk 0:00:06]} 38. Rxd3 {[%clk 0:00:04]}  Rxd3 {[%clk 0:00:06]} 39. Qxd3 {[%clk 0:00:04]}  Qxh2+ {[%clk 0:00:06]} 40. Ka3 {[%clk 0:00:03]}  Qxh4 {[%clk 0:00:06]} 41. Qd6 {[%clk 0:00:01]}  Qf2 {[%clk 0:00:06]} 0-1


[Site "https://www.chess.com"]

[Event "Titled Tuesday Blitz September 21 2021"]
[White "Sailer, Mike"]
[Black "Iskusnyh, Sergei"]
[WhiteFideId "2012901"]
[BlackFideId "4120027"]
[WhiteElo "2109"]
[BlackElo "2492"]
[Result "0-1"]
[Round "02"]
[TimeControl "180+1"]
[Date "2021.09.21"]
[WhiteClock "0:00:09"]
[BlackClock "0:01:16"]

1. d4 {[%clk 0:03:00]}  d5 {[%clk 0:02:59]} 2. Nf3 {[%clk 0:02:57]}  Nf6 {[%clk 0:02:58]} 3. Bf4 {[%clk 0:02:58]}  c5 {[%clk 0:02:58]} 4. e3 {[%clk 0:02:58]}  Nc6 {[%clk 0:02:58]} 5. Nc3 {[%clk 0:02:59]}  cxd4 {[%clk 0:02:55]} 6. exd4 {[%clk 0:02:59]}  a6 {[%clk 0:02:55]} 7. Be2 {[%clk 0:02:58]}  Bg4 {[%clk 0:02:54]} 8. h3 {[%clk 0:02:58]}  Bxf3 {[%clk 0:02:50]} 9. Bxf3 {[%clk 0:02:58]}  e6 {[%clk 0:02:50]} 10. O-O {[%clk 0:02:57]}  Be7 {[%clk 0:02:48]} 11. a3 {[%clk 0:02:40]}  O-O {[%clk 0:02:47]} 12. Ne2 {[%clk 0:02:37]}  Rc8 {[%clk 0:02:44]} 13. c3 {[%clk 0:02:37]}  Na5 {[%clk 0:02:34]} 14. Nc1 {[%clk 0:02:35]}  Nc4 {[%clk 0:02:33]} 15. Nd3 {[%clk 0:02:35]}  Nd7 {[%clk 0:02:30]} 16. Qe2 {[%clk 0:02:31]}  Bd6 {[%clk 0:02:28]} 17. Bxd6 {[%clk 0:02:23]}  Nxd6 {[%clk 0:02:27]} 18. Ne5 {[%clk 0:02:14]}  Nxe5 {[%clk 0:02:26]} 19. dxe5 {[%clk 0:02:13]}  Nc4 {[%clk 0:02:18]} 20. Rfe1 {[%clk 0:02:07]}  Qc7 {[%clk 0:02:04]} 21. Rab1 {[%clk 0:01:46]}  Rfd8 {[%clk 0:02:02]} 22. Bg4 {[%clk 0:01:44]}  b5 {[%clk 0:01:54]} 23. f4 {[%clk 0:01:39]}  g6 {[%clk 0:01:53]} 24. Kh1 {[%clk 0:01:29]}  a5 {[%clk 0:01:48]} 25. Qd3 {[%clk 0:01:13]}  Qb6 {[%clk 0:01:43]} 26. Bd1 {[%clk 0:01:10]}  Qf2 {[%clk 0:01:35]} 27. Rf1 {[%clk 0:00:47]}  Qd2 {[%clk 0:01:34]} 28. Bc2 {[%clk 0:00:43]}  Qxd3 {[%clk 0:01:33]} 29. Bxd3 {[%clk 0:00:42]}  Nd2 {[%clk 0:01:34]} 30. Bxb5 {[%clk 0:00:42]}  d4 {[%clk 0:01:30]} 31. c4 {[%clk 0:00:40]}  d3 {[%clk 0:01:26]} 32. b4 {[%clk 0:00:32]}  axb4 {[%clk 0:01:22]} 33. axb4 {[%clk 0:00:33]}  Rd4 {[%clk 0:01:23]} 34. Rbd1 {[%clk 0:00:16]}  Nxf1 {[%clk 0:01:21]} 35. Rxf1 {[%clk 0:00:16]}  d2 {[%clk 0:01:17]} 36. Rd1 {[%clk 0:00:16]}  Rcd8 {[%clk 0:01:18]} 37. g3 {[%clk 0:00:13]}  Re4 {[%clk 0:01:18]} 38. Kg2 {[%clk 0:00:09]}  Re1 {[%clk 0:01:17]} 39. Rxd2 {[%clk 0:00:09]}  Rxd2+ {[%clk 0:01:16]} 0-1


[Site "https://www.chess.com"]

[Event "Titled Tuesday Blitz September 21 2021"]
[White "Savchenko, Boris"]
[Black "Paul, Justin"]
[WhiteFideId "4147332"]
[BlackFideId "2086581"]
[WhiteElo "2543"]
[BlackElo "2034"]
[Result "1-0"]
[Round "02"]
[TimeControl "180+1"]
[Date "2021.09.21"]
[WhiteClock "0:02:46"]
[BlackClock "0:01:52"]

1. e4 {[%clk 0:03:00]}  c5 {[%clk 0:02:57]} 2. Nf3 {[%clk 0:03:00]}  d6 {[%clk 0:02:57]} 3. d4 {[%clk 0:03:01]}  cxd4 {[%clk 0:02:58]} 4. Nxd4 {[%clk 0:03:01]}  Nf6 {[%clk 0:02:59]} 5. Nc3 {[%clk 0:03:02]}  a6 {[%clk 0:02:59]} 6. h3 {[%clk 0:03:02]}  b5 {[%clk 0:02:45]} 7. a4 {[%clk 0:03:00]}  b4 {[%clk 0:02:44]} 8. Nd5 {[%clk 0:03:00]}  e6 {[%clk 0:02:37]} 9. Nxf6+ {[%clk 0:02:53]}  gxf6 {[%clk 0:02:28]} 10. Bc4 {[%clk 0:02:54]}  Qc7 {[%clk 0:02:25]} 11. Qe2 {[%clk 0:02:52]}  Nc6 {[%clk 0:02:24]} 12. Nxc6 {[%clk 0:02:51]}  Qxc6 {[%clk 0:02:24]} 13. Bd5 {[%clk 0:02:51]}  Qc7 {[%clk 0:01:52]} 14. Bxa8 {[%clk 0:02:49]}  Be7 {[%clk 0:01:52]} 15. O-O {[%clk 0:02:47]}  O-O {[%clk 0:01:52]} 16. Bh6 {[%clk 0:02:46]} 1-0


[Site "https://www.chess.com"]

[Event "Titled Tuesday Blitz September 21 2021"]
[White "Schut, Han"]
[Black "Zarubitski, Viachaslau"]
[WhiteFideId "1005561"]
[BlackFideId "13509373"]
[WhiteElo "2057"]
[BlackElo "2315"]
[Result "1-0"]
[Round "02"]
[TimeControl "180+1"]
[Date "2021.09.21"]
[WhiteClock "0:00:11"]
[BlackClock "0:00:02"]

1. e4 {[%clk 0:02:46]}  e6 {[%clk 0:02:51]} 2. d4 {[%clk 0:02:46]}  b6 {[%clk 0:02:51]} 3. Bd3 {[%clk 0:02:45]}  Bb7 {[%clk 0:02:51]} 4. Qe2 {[%clk 0:02:45]}  c5 {[%clk 0:02:51]} 5. c3 {[%clk 0:02:45]}  d5 {[%clk 0:02:51]} 6. e5 {[%clk 0:02:44]}  Qc8 {[%clk 0:02:52]} 7. Nd2 {[%clk 0:02:35]}  Ba6 {[%clk 0:02:51]} 8. f4 {[%clk 0:02:34]}  Bxd3 {[%clk 0:02:51]} 9. Qxd3 {[%clk 0:02:35]}  Qa6 {[%clk 0:02:52]} 10. Ke2 {[%clk 0:02:25]}  Ne7 {[%clk 0:02:49]} 11. Ndf3 {[%clk 0:02:17]}  Nec6 {[%clk 0:02:37]} 12. a3 {[%clk 0:02:13]}  Qxd3+ {[%clk 0:02:34]} 13. Kxd3 {[%clk 0:02:13]}  c4+ {[%clk 0:02:34]} 14. Kc2 {[%clk 0:02:05]}  b5 {[%clk 0:02:35]} 15. Ne2 {[%clk 0:02:00]}  Nd7 {[%clk 0:02:35]} 16. Bd2 {[%clk 0:02:00]}  Nb6 {[%clk 0:02:32]} 17. g4 {[%clk 0:02:00]}  g6 {[%clk 0:02:31]} 18. Ng3 {[%clk 0:01:57]}  h5 {[%clk 0:02:15]} 19. gxh5 {[%clk 0:01:56]}  gxh5 {[%clk 0:02:16]} 20. h4 {[%clk 0:01:53]}  Ne7 {[%clk 0:02:12]} 21. f5 {[%clk 0:01:46]}  Nxf5 {[%clk 0:02:01]} 22. Nxf5 {[%clk 0:01:46]}  exf5 {[%clk 0:02:02]} 23. Rhg1 {[%clk 0:01:41]}  Nc8 {[%clk 0:01:57]} 24. Bg5 {[%clk 0:01:36]}  a5 {[%clk 0:01:55]} 25. Bf6 {[%clk 0:01:33]}  Rh6 {[%clk 0:01:47]} 26. Rg5 {[%clk 0:01:16]}  Ne7 {[%clk 0:01:42]} 27. Rag1 {[%clk 0:00:59]}  b4 {[%clk 0:01:30]} 28. axb4 {[%clk 0:00:57]}  axb4 {[%clk 0:01:31]} 29. cxb4 {[%clk 0:00:55]}  Nc6 {[%clk 0:01:26]} 30. b5 {[%clk 0:00:52]}  Nb4+ {[%clk 0:01:23]} 31. Kb1 {[%clk 0:00:35]}  Nd3 {[%clk 0:01:12]} 32. Bg7 {[%clk 0:00:30]}  Bxg7 {[%clk 0:00:49]} 33. Rxg7 {[%clk 0:00:31]}  Ra5 {[%clk 0:00:48]} 34. Rg8+ {[%clk 0:00:27]}  Ke7 {[%clk 0:00:48]} 35. Rb8 {[%clk 0:00:27]}  Ra4 {[%clk 0:00:27]} 36. Rgg8 {[%clk 0:00:21]}  f4 {[%clk 0:00:12]} 37. Ng5 {[%clk 0:00:16]}  Ra7 {[%clk 0:00:02]} 38. Rbd8 {[%clk 0:00:11]} 1-0


[Site "https://www.chess.com"]